bitfinex/quotes_ETHUSD_20251010
["timestamp","ask_amount","ask_price","bid_price","bid_amount"]
[1760135138014,0.78043196,3859.7,3857.8,7.36786346]
[1760135138203,1.26129304,3863.8,3857.8,7.36786346]
[1760135138406,1.27694859,3863.6,3854.6,22.5]
[1760135138634,1.21182285,3859.8,3854.6,22.5]
[1760135138828,1.27192656,3858.7,3854.6,22.5]
[1760135139027,1.27543808,3859.1,3854.6,22.5]
[1760135139215,1.27543808,3859.1,3853.5,1.23]
[1760135139216,1.23733615,3861.7,3853.5,1.23]
[1760135139422,1.27946514,3861.5,3853.5,2.46]
[1760135139730,2.58966722,3861.5,3853.5,2.46]
[1760135140044,1.28024544,3861.4,3853.5,2.46]
[1760135140242,0.78099881,3861.6,3853.5,2.46]
[1760135140243,2.5945459,3854.3,3853.5,2.46]
[1760135140538,1.27915444,3860.3,3853.5,2.46]
[1760135140713,1.25076372,3860.1,3853.5,3.69]
[1760135141042,2.59492811,3853.7,3853.5,3.69]
[1760135141355,1.28712417,3855.6,3853.5,3.69]
[1760135141507,2.59495297,3853.7,3853.5,3.69]
[1760135141708,1.22846123,3859.4,3853.5,3.69]
[1760135141904,1.28712417,3855.6,3853.5,3.69]
[1760135142107,21.43,3895.1,3853.5,3.69]
[1760135142108,2.59497612,3853.6,3853.5,4.92]
[1760135142510,2.59538022,3853.0,3852.9,2.462]
[1760135142710,1.27543808,3859.1,3852.9,2.462]
[1760135142905,2.59493762,3853.7,3852.9,2.462]
[1760135143129,2.59421265,3854.8,3852.9,2.462]
[1760135143406,1.22846123,3859.4,3852.9,2.462]
[1760135143649,0.98005053,3898.9,3852.9,2.462]
[1760135143650,0.78129984,3855.7,3852.9,3.692]
[1760135143949,1.27767528,3858.2,3852.9,3.692]
[1760135144252,0.95615592,3898.8,3852.9,3.692]
[1760135144253,1.26426567,3855.9,3852.9,3.692]
[1760135144555,1.27353558,3857.0,3852.9,3.692]
[1760135144844,0.78102525,3856.9,3852.9,3.692]
[1760135145042,0.78102525,3856.9,3852.9,4.922]
[1760135145206,1.27946514,3861.5,3852.9,4.922]
[1760135145608,0.001,3862.0,3852.9,4.922]
[1760135146239,0.78087887,3857.7,3854.8,22.5]
[1760135146440,2.58966722,3861.5,3854.8,22.5]
[1760135146611,0.78041978,3861.5,3854.8,22.5]
[1760135147013,1.28024544,3861.4,3852.9,6.152]
[1760135147438,1.28024544,3861.4,3853.3,20.431]
[1760135147643,2.59304236,3856.5,3853.3,20.431]
[1760135147830,1.28024544,3861.4,3853.3,21.661]
[1760135148151,1.27946514,3861.5,3853.3,21.661]
[1760135148319,0.78063098,3861.3,3854.4,22.5]
[1760135148524,2.5919494,3858.1,3854.4,22.5]
[1760135148726,1.29914571,3861.2,3854.4,22.5]
[1760135148922,1.2990077,3857.6,3854.4,22.5]
[1760135149123,1.27767528,3858.2,3854.4,23.73]
[1760135149435,1.23192986,3858.3,3854.4,1.23]
[1760135149618,2.58927524,3862.1,3854.4,1.23]
[1760135149619,1.27946514,3861.5,3854.4,1.23]
[1760135149948,1.24681258,3858.1,3854.4,1.23]
[1760135150144,2.59323115,3856.2,3854.4,1.23]
[1760135150444,0.78086261,3858.2,3854.4,1.23]
[1760135150445,2.59247657,3857.4,3854.4,1.23]
[1760135150747,1.27946514,3861.5,3854.4,2.46]
[1760135151165,2.59173919,3858.5,3854.4,2.46]
[1760135151369,2.59118135,3859.3,3855.9,22.5]
[1760135151667,3.7944258,3860.2,3855.9,22.5]
[1760135151870,1.20077969,3860.4,3855.9,22.5]
[1760135152041,2.59020384,3860.7,3855.9,23.73]
[1760135152233,1.28131835,3861.0,3856.4,22.5]
[1760135152443,1.27946514,3861.5,3856.4,22.5]
[1760135152768,0.78026045,3860.6,3856.4,22.5]
[1760135152945,0.78026045,3860.6,3856.4,22.451]
[1760135153144,0.00709966,3861.8,3856.4,22.451]
[1760135153369,0.001,3862.0,3858.0,22.5]
[1760135154466,0.001,3862.0,3860.4,22.5]
[1760135154976,0.001,3862.0,3860.4,23.73]
[1760135155141,0.00706938,3875.0,3860.4,23.73]
[1760135155336,0.216,3880.2,3860.4,23.73]
[1760135155337,0.1347271,3865.6,3862.0,0.002]
[1760135155542,0.103852,3867.1,3861.5,22.5]
[1760135155836,0.103852,3867.1,3860.4,1.23]
[1760135156170,1.20195228,3871.5,3860.4,1.23]
[1760135156466,1.22689258,3868.2,3861.8,22.5]
[1760135156837,2.58610372,3866.9,3861.8,22.5]
[1760135157039,2.58634864,3866.5,3861.8,22.5]
[1760135157267,2.5853154,3868.0,3862.1,22.5]
[1760135157470,2.58612247,3866.8,3862.1,22.5]
[1760135157670,0.77889404,3867.1,3862.1,23.73]
[1760135157973,1.25439208,3867.4,3862.1,23.73]
[1760135158141,0.4393,3871.7,3862.1,23.73]
[1760135158142,1.20071289,3865.3,3862.1,23.73]
[1760135158342,1.21972531,3867.1,3862.2,22.5]
[1760135158548,1.25918957,3866.7,3862.2,22.5]
[1760135158749,0.77923595,3865.7,3862.2,22.5]
[1760135158954,2.5857449,3867.4,3862.2,22.5]
[1760135159254,0.779068,3867.1,3862.2,1.23]
[1760135159662,1.24005967,3867.0,3862.2,1.23]
[1760135159966,1.2690835,3866.8,3862.2,1.23]
[1760135160264,1.26636938,3875.0,3863.7,22.5]
[1760135160465,1.28847186,3874.8,3863.7,22.5]
[1760135160781,1.25721917,3868.8,3863.7,22.5]
[1760135160992,0.77902753,3874.9,3863.7,22.5]
[1760135160993,1.28847186,3874.8,3863.7,22.5]
[1760135161160,1.27026924,3874.6,3863.7,22.5]
[1760135161366,1.20195228,3871.5,3866.6,22.5]
[1760135161673,2.58477984,3868.9,3866.6,22.5]
[1760135161873,1.21317841,3872.8,3866.6,23.73]
[1760135162235,1.24813698,3868.7,3862.2,2.46]
[1760135162401,0.7791115,3868.8,3862.2,2.46]
[1760135162893,0.001,3866.0,3862.2,2.46]
[1760135163094,1.22753748,3862.3,3862.2,2.46]
[1760135163254,1.20989327,3865.9,3862.2,3.69]
[1760135163674,0.77937361,3865.8,3862.2,3.69]
[1760135163881,0.001,3866.0,3862.2,3.69]
[1760135164482,1.2746282,3865.7,3862.2,4.92]
[1760135164712,0.001,3866.0,3862.2,4.92]
[1760135164911,2.5874085,3864.9,3862.2,4.92]
[1760135165118,0.77921976,3865.6,3862.2,4.92]
[1760135165119,2.58748739,3864.8,3862.2,4.92]
[1760135165286,1.20071289,3865.3,3862.2,4.92]
[1760135165488,0.91432135,3864.8,3862.2,4.92]
[1760135165687,1.26129304,3863.8,3862.2,4.92]
[1760135166025,0.91432135,3864.8,3862.2,4.92]
[1760135166233,0.91432135,3864.8,3862.2,6.15]
[1760135166393,1.27490505,3864.7,3862.2,6.15]
[1760135166587,1.25372515,3864.6,3856.4,1.23]
[1760135166819,0.77984566,3864.7,3856.4,1.23]
[1760135166820,2.05475071,3864.7,3856.4,1.23]
[1760135167021,1.22183506,3864.5,3856.5,1.92]
[1760135167220,1.27490505,3864.7,3860.5,0.00566756]
[1760135167403,0.77981526,3864.6,3860.5,0.00566168]
[1760135167601,0.13478978,3864.8,3860.5,1.23]
[1760135167829,1.27490505,3864.7,3860.6,0.00570743]
[1760135168134,1.26405658,3865.8,3860.5,1.23]
[1760135168291,2.58676491,3865.9,3860.5,1.23]
[1760135168292,1.24978498,3864.3,3860.5,1.23]
[1760135168490,1.20071289,3865.3,3860.5,1.23]
[1760135168688,1.21844718,3865.2,3860.5,1.23]
[1760135168893,0.77936551,3865.4,3860.5,2.46]
[1760135169120,0.001,3866.0,3860.5,2.46]
[1760135169287,2.5871534,3865.3,3860.5,2.46]
[1760135169492,0.001,3866.0,3860.5,2.46]
[1760135170023,0.001,3866.0,3860.5,4.38]
[1760135170203,0.001,3866.0,3860.6,0.60770595]
[1760135170721,2.58324456,3871.2,3860.6,0.60770595]
[1760135170722,0.13466424,3869.5,3860.7,1.29029975]
[1760135170933,1.27196214,3870.8,3860.8,0.60770595]
[1760135171248,1.27196214,3870.8,3862.6,1.92]
[1760135171521,1.27196214,3870.8,3860.5,3.69]
[1760135171522,1.27196214,3870.8,3863.2,1.21465824]
[1760135171687,0.13464464,3871.4,3863.3,0.61325789]
[1760135171888,2.58200659,3873.0,3864.2,1.92]
[1760135172122,0.13460952,3872.9,3864.3,0.60269123]
[1760135172429,1.28477144,3871.3,3864.4,0.29277432]
[1760135172632,1.2466129,3869.7,3864.4,0.59697957]
[1760135172926,0.91253611,3872.9,3864.5,0.28549431]
[1760135173093,1.28229519,3871.4,3864.6,0.00535473]
[1760135173294,1.20195228,3871.5,3864.6,0.00535473]
[1760135173526,2.58289208,3871.7,3864.6,0.00535473]
[1760135173726,2.58441095,3869.4,3864.6,0.00535473]
[1760135173913,2.58330813,3871.1,3864.4,1.23]
[1760135174240,2.58549128,3867.8,3864.4,1.23]
[1760135174531,2.58563772,3867.6,3864.5,0.00629497]
[1760135174743,2.58481139,3868.8,3864.5,0.00629497]
[1760135175044,2.58037067,3875.5,3864.5,0.00629497]
[1760135175045,1.21513587,3870.2,3864.5,0.00629496]
[1760135175201,1.20788645,3870.9,3864.5,0.00629496]
[1760135175403,2.58530937,3868.1,3864.4,2.46]
[1760135175741,2.58624001,3866.7,3864.4,2.46]
[1760135175926,1.20821641,3869.6,3864.5,0.00644832]
[1760135176133,2.58299901,3871.5,3864.4,3.69]
[1760135176134,2.58386055,3870.2,3864.4,3.69]
[1760135176353,2.58314612,3871.3,3864.5,0.00644831]
[1760135176553,0.7784595,3870.5,3864.5,0.00644831]
[1760135176752,2.57974535,3876.4,3864.5,0.00644831]
[1760135176951,2.5810892,3875.9,3864.6,0.72009284]
[1760135177292,2.58180848,3873.3,3864.7,0.00644797]
[1760135177411,0.15916275,3875.0,3864.7,0.43027776]
[1760135177615,2.57881258,3877.8,3864.9,1.26766865]
[1760135177841,0.14745176,3875.3,3866.7,2.58613155]
[1760135178042,0.01291,3875.3,3866.8,0.7438623]
[1760135178242,0.01291,3875.3,3866.9,1.22201082]
[1760135178548,0.01291,3875.3,3868.1,2.58518296]
[1760135178726,2.58075318,3874.9,3868.2,2.58889784]
[1760135178922,0.01291,3875.3,3868.7,2.58480625]
[1760135179121,0.01291,3875.3,3866.9,1.23]
[1760135179122,0.01291,3875.3,3868.8,0.2927705]
[1760135179362,0.01291,3875.3,3868.8,0.00644111]
[1760135179521,1.26143029,3874.2,3867.6,0.35365033]
[1760135179726,1.26636938,3875.0,3867.7,0.00644077]
[1760135179922,0.11656339,3875.3,3867.7,0.00644077]
[1760135180136,0.01291,3875.3,3867.8,0.64301306]
[1760135180345,0.01291,3875.3,3869.4,1.24603593]
[1760135180548,0.01291,3875.3,3869.5,0.59095915]
[1760135180745,0.01291,3875.3,3869.6,1.25745391]
[1760135181059,0.01291,3875.3,3869.7,0.26701681]
[1760135181262,0.01291,3875.3,3869.7,0.28068348]
[1760135181561,0.01291,3875.3,3869.7,1.51068348]
[1760135181760,0.01291,3875.3,3869.8,1.29405032]
[1760135181959,0.01291,3875.3,3870.2,1.20359115]
[1760135182255,0.01291,3875.3,3870.3,1.83798347]
[1760135182462,0.01291,3875.3,3871.8,2.58271958]
[1760135182629,0.01291,3875.3,3869.7,3.81414175]
[1760135182630,0.01291,3875.3,3871.9,0.28663176]
[1760135182825,0.01291,3875.3,3871.9,0.00646904]
[1760135183027,0.01291,3875.3,3870.7,0.00646904]
[1760135184263,0.01291,3875.3,3870.7,1.23646904]
[1760135185058,0.001,3873.6,3870.7,1.23646904]
[1760135185651,0.001,3873.6,3870.7,2.46646904]
[1760135186347,0.001,3873.6,3870.7,2.46]
[1760135186737,2.58342217,3870.9,3870.7,2.46]
[1760135186957,2.58411287,3869.8,3869.7,1.23]
[1760135187142,2.58197463,3873.1,3869.7,1.23]
[1760135187349,2.58344528,3870.8,3870.7,1.23]
[1760135187560,2.58184446,3873.2,3870.7,1.23]
[1760135187757,2.58334381,3871.0,3870.7,1.23]
[1760135187939,0.001,3873.6,3870.7,1.23]
[1760135188689,2.58074442,3874.9,3870.7,2.46]
[1760135188896,1.26087808,3880.4,3870.7,2.46]
[1760135189186,0.77708027,3877.2,3870.7,2.46]
[1760135189393,2.58203217,3873.0,3870.7,2.46]
[1760135189574,0.77708027,3877.2,3870.7,2.46]
[1760135189910,11.32,3907.9,3870.7,2.46]
[1760135189911,1.26987741,3877.9,3870.7,2.46]
[1760135190062,1.27541993,3877.3,3870.7,3.69]
[1760135190567,2.58334125,3871.0,3870.7,3.69]
[1760135190772,2.58182848,3873.3,3870.7,3.69]
[1760135190959,1.2160215,3874.5,3870.7,3.69]
[1760135190960,2.5810448,3874.4,3870.7,3.69]
[1760135191155,2.57911433,3877.3,3870.7,3.69]
[1760135191357,2.58333848,3871.0,3870.7,3.69]
[1760135191563,2.58137793,3873.9,3870.7,4.92]
[1760135191789,1.29736481,3876.9,3870.7,4.92]
[1760135191990,0.24420441,3875.5,3870.7,4.92]
[1760135192158,0.77718898,3877.0,3870.7,4.92]
[1760135192364,1.26087808,3880.4,3870.8,0.25504382]
[1760135192689,0.77649497,3880.4,3870.8,1.92]
[1760135192893,0.24420441,3880.3,3870.9,1.69504382]
[1760135193094,0.13437608,3882.1,3870.9,2.03383194]
[1760135193275,0.13437608,3882.1,3871.0,1.92]
[1760135193586,0.91049339,3882.1,3871.1,0.67987934]
[1760135193787,1.27993783,3881.9,3871.1,0.67987934]
[1760135194096,2.57772093,3879.4,3871.2,0.38565418]
[1760135194295,0.77644574,3881.8,3871.2,0.38565418]
[1760135194459,2.57762612,3879.6,3871.2,0.38565418]
[1760135194801,2.57670891,3881.0,3871.3,0.24390849]
[1760135194963,1.2497624,3882.0,3871.4,0.38565418]
[1760135195158,0.13437608,3882.1,3871.5,0.24390849]
[1760135195469,0.77585237,3883.5,3871.7,1.92]
[1760135195672,1.27993783,3881.9,3871.7,1.92]
[1760135195862,2.57802265,3879.0,3871.8,0.34114585]
[1760135196061,1.22889472,3883.4,3871.8,0.34114585]
[1760135196260,2.57439904,3884.5,3871.6,52.50253007]
[1760135196261,2.57778247,3879.4,3871.6,0.39553007]
[1760135196468,0.13432442,3881.8,3871.8,0.34114585]
[1760135196670,1.22078259,3883.2,3871.5,1.23]
[1760135196972,2.57872734,3877.9,3872.2,0.39557785]
[1760135197169,1.28839285,3883.0,3871.5,2.46]
[1760135197365,2.81600179,3884.8,3871.5,2.46]
[1760135197366,0.24184668,3884.5,3871.5,2.46]
[1760135197587,0.134344,3880.8,3871.5,2.46]
[1760135197775,1.23373582,3882.8,3871.5,2.46]
[1760135197987,0.13438529,3880.7,3871.5,2.46]
[1760135198391,1.21633185,3882.6,3871.5,2.46]
[1760135198568,2.57938204,3876.9,3871.5,3.69]
[1760135198764,2.57946951,3876.8,3871.5,3.69]
[1760135198995,2.57904574,3877.5,3871.5,3.69]
[1760135199198,2.57811694,3878.8,3871.5,3.69]
[1760135199199,0.13435696,3879.4,3871.5,3.69]
[1760135199400,2.57990023,3876.2,3871.5,3.69]
[1760135199597,1.21611232,3879.0,3871.5,3.69]
[1760135199786,1.20747871,3879.3,3871.5,3.69]
[1760135200099,0.777038,3878.9,3871.5,4.92]
[1760135200299,2.07259491,3878.9,3871.5,4.92]
[1760135200873,1.28860614,3878.8,3871.5,4.92]
[1760135201198,1.20747871,3879.3,3871.5,4.92]
[1760135201374,1.20080014,3879.1,3871.5,6.15]
[1760135201975,2.5785158,3878.2,3871.5,6.15]
[1760135202176,2.58249172,3872.3,3871.5,6.15]
[1760135202372,2.57805047,3878.9,3871.1,1.23]
[1760135202373,2.58317834,3871.2,3871.1,1.23]
[1760135202572,2.58337854,3870.9,3870.7,0.75136192]
[1760135202769,2.58258106,3872.1,3864.5,1.23]
[1760135202979,2.58406335,3869.9,3864.5,1.23]
[1760135203199,2.58491036,3868.7,3864.5,1.23]
[1760135203387,0.7782414,3871.9,3864.6,0.01449371]
[1760135203591,1.20649503,3871.8,3867.6,0.01448246]
[1760135203793,1.20747871,3879.3,3867.6,0.01448246]
[1760135203996,2.58427789,3869.6,3867.7,0.01447085]
[1760135204312,2.58427789,3869.6,3866.4,0.002]
[1760135204313,1.29555691,3878.9,3867.6,1.23]
[1760135204610,22.5,3886.8,3866.4,0.002]
[1760135204611,2.58551593,3867.7,3867.5,1e-08]
[1760135204777,2.58541882,3867.9,3866.9,1e-08]
[1760135204778,2.58598396,3867.0,3866.9,1e-08]
[1760135205510,2.58596094,3867.1,3866.9,1e-08]
[1760135205682,2.58596094,3867.1,3866.9,1.23000001]
[1760135205882,2.58596901,3867.1,3866.9,1.23000001]
[1760135206210,2.5859489,3867.1,3866.9,1.23000001]
[1760135206416,2.5859489,3867.1,3866.9,1e-08]
[1760135206912,2.5868536,3865.7,3865.6,1e-08]
[1760135207481,2.58413055,3869.8,3865.6,1e-08]
[1760135207680,2.5868536,3865.7,3865.6,1e-08]
[1760135208178,2.58758991,3864.6,3864.4,1e-08]
[1760135209179,2.58646406,3866.3,3864.4,1e-08]
[1760135209180,0.221,3872.0,3864.4,1e-08]
[1760135209375,2.58167594,3873.5,3864.5,0.36950051]
[1760135209582,0.20286432,3873.8,3864.5,1.24665503]
[1760135209816,2.57954416,3876.7,3864.7,1.28183333]
[1760135209999,0.20628932,3874.9,3865.2,2.58714289]
[1760135210208,0.20628932,3874.9,3864.4,1.23000001]
[1760135210394,2.58097952,3874.5,3864.4,1.23000001]
[1760135210720,0.33206549,3874.4,3864.4,1.23000001]
[1760135210916,1.24950314,3874.3,3864.4,1.23000001]
[1760135211131,1.2954421,3874.1,3864.4,1.23000001]
[1760135211335,2.58437229,3869.5,3864.4,2.46000001]
[1760135211535,0.4498,3875.3,3864.4,2.46000001]
[1760135211697,2.58005657,3875.9,3864.4,2.46000001]
[1760135211898,0.33206549,3875.2,3864.4,2.46000001]
[1760135212131,1.26636938,3875.0,3864.4,2.46000001]
[1760135212337,1.28847186,3874.8,3864.4,2.46000001]
[1760135212534,0.77353216,3874.7,3864.4,2.46000001]
[1760135212735,2.58624699,3866.7,3864.4,3.69000001]
[1760135212906,2.58493888,3868.6,3864.4,3.69000001]
[1760135212907,1.0,4498.4,3864.4,3.69000001]
[1760135213109,1.24950314,3874.3,3864.4,3.69000001]
[1760135213392,0.31906549,3874.2,3864.5,0.6471]
[1760135213639,0.24620967,3874.1,3864.6,0.4314]
[1760135213841,0.2924767,3874.0,3864.6,0.4314]
[1760135214017,0.24620967,3873.9,3864.6,1.6614]
[1760135214317,0.26803816,3873.8,3864.7,0.4314]
[1760135214518,0.26803816,3873.8,3864.6,1.23]
[1760135214519,0.69600967,3873.7,3864.6,1.23]
[1760135214818,2.58752296,3864.7,3864.6,1.23]
[1760135215026,0.4498,3870.5,3861.8,0.002]
[1760135215220,1.21832023,3870.2,3861.8,0.002]
[1760135215434,0.53101971,3870.1,3861.8,0.002]
[1760135215637,2.86878875,3870.1,3861.8,0.002]
[1760135215952,2.58889793,3862.7,3861.8,0.002]
[1760135216159,2.58919786,3862.2,3861.8,0.002]
[1760135216328,2.58708841,3865.4,3861.8,0.002]
[1760135216529,2.58910915,3862.4,3861.8,0.002]
[1760135216723,2.58878197,3862.9,3862.1,1.232]
[1760135217050,2.58912956,3862.4,3862.1,1.232]
[1760135217361,5.16649014,3871.1,3862.1,1.232]
[1760135217521,1.26470108,3869.6,3862.1,1.232]
[1760135217837,1.25893284,3869.1,3862.1,1.232]
[1760135218042,1.24114814,3866.2,3862.1,2.462]
[1760135218251,2.58646083,3866.3,3862.1,2.462]
[1760135218556,1.20960244,3867.0,3862.1,2.462]
[1760135218775,1.25295681,3867.9,3862.1,2.462]
[1760135218979,2.58757586,3864.7,3862.1,2.462]
[1760135219186,2.58526738,3868.1,3862.1,2.462]
[1760135219349,1.25295681,3867.9,3862.1,3.692]
[1760135219674,0.25987592,3868.0,3862.1,3.692]
[1760135219881,1.20736434,3869.2,3862.1,3.692]
[1760135220062,13.323,3883.6,3862.1,3.692]
[1760135220063,1.21182108,3872.2,3862.1,3.692]
[1760135220264,1.21387113,3872.0,3862.1,3.692]
[1760135220574,1.23043284,3871.4,3862.1,3.692]
[1760135220875,1.20021531,3871.2,3862.1,4.922]
[1760135221262,2.58918765,3862.3,3862.1,4.922]
[1760135221577,1.24152293,3865.5,3862.1,4.922]
[1760135221796,2.59000259,3861.0,3856.4,1.23]
[1760135221949,1.25295681,3867.9,3856.4,1.23]
[1760135222274,1.28116702,3867.7,3860.9,2.46]
[1760135222476,1.26180843,3874.9,3860.9,2.46]
[1760135222664,5.1662299,3871.3,3860.9,2.46]
[1760135222868,0.221,3875.0,3860.9,2.46]
[1760135222869,1.2847352,3871.1,3860.9,2.46]
[1760135223068,2.5877908,3864.3,3860.9,2.46]
[1760135223257,0.221,3871.6,3856.4,1.23]
[1760135223258,2.58998627,3861.1,3856.4,1.23]
[1760135223448,0.24295684,3865.6,3856.4,1.23]
[1760135223647,1.20960244,3867.0,3856.4,1.23]
[1760135223849,0.27857185,3867.1,3859.8,1.92]
[1760135224148,1.25907581,3877.4,3860.6,1.92]
[1760135224348,0.221,3878.4,3860.6,1.92]
[1760135224349,1.21351571,3877.2,3860.6,1.92]
[1760135224566,1.23966842,3877.0,3860.7,0.37974336]
[1760135224745,1.29707396,3876.8,3860.7,0.00734987]
[1760135224954,1.23643685,3876.6,3860.8,0.37239349]
[1760135225174,0.21059904,3876.5,3860.9,0.00734948]
[1760135225390,1.2132827,3879.2,3861.1,1.2152554]
[1760135225547,2.57954743,3876.7,3862.0,1.22063817]
[1760135225752,0.24295684,3877.8,3862.1,0.59110558]
[1760135225946,0.001,3879.3,3862.1,0.65285955]
[1760135225947,0.24295684,3876.6,3862.1,0.65285955]
[1760135226174,2.58399461,3870.0,3862.4,1.28721024]
[1760135226374,1.21282609,3877.7,3862.5,0.37239349]
[1760135226700,2.57883907,3877.8,3863.3,1.92]
[1760135227008,1.28576982,3877.6,3863.6,2.58820551]
[1760135227197,0.001,3879.3,3863.7,0.37239349]
[1760135227198,1.29887998,3878.5,3863.7,0.37239349]
[1760135227393,0.24295684,3878.4,3863.7,0.37239349]
[1760135227608,1.29671548,3878.4,3863.7,1.58809275]
[1760135227810,1.29671548,3878.4,3863.8,1.25938827]
[1760135227996,2.5803991,3875.4,3863.9,0.37239349]
[1760135228194,0.001,3879.3,3863.9,0.37239349]
[1760135228909,1.2132827,3879.2,3866.3,1.22567061]
[1760135229211,1.2132827,3879.2,3866.4,0.37239349]
[1760135229507,0.001,3879.3,3866.4,0.37239349]
[1760135229678,0.001,3879.3,3866.2,2.58649765]
[1760135229879,1.28533772,3879.1,3866.5,0.29959549]
[1760135230224,1.29887998,3878.5,3866.6,0.34613455]
[1760135230380,0.001,3879.3,3868.5,1.92]
[1760135230723,0.001,3879.3,3868.6,0.34613455]
[1760135230920,0.001,3879.3,3868.6,0.64573004]
[1760135231293,0.001,3879.3,3868.8,1.92]
[1760135231834,0.001,3879.3,3868.9,3.56060278]
[1760135232123,0.001,3879.3,3868.9,0.6796548]
[1760135232295,0.001,3879.3,3870.6,1.92]
[1760135232495,0.001,3879.3,3870.7,0.37618847]
[1760135232816,1.35669857,3882.5,3870.7,0.37618847]
[1760135233012,1.28876493,3882.4,3870.7,0.37618847]
[1760135233199,1.28876493,3882.4,3870.6,1.92]
[1760135233200,2.57750224,3879.8,3870.6,1.92]
[1760135233399,1.73666493,3882.4,3870.6,1.23]
[1760135233578,1.28876493,3882.4,3870.6,1.23]
[1760135233795,1.21928617,3879.6,3870.6,1.23]
[1760135234020,1.28876493,3882.4,3870.6,1.23]
[1760135234198,2.57580464,3882.3,3870.6,1.23]
[1760135234521,0.28642076,3882.2,3870.6,1.23]
[1760135234692,1.28877792,3882.1,3870.6,2.46]
[1760135234892,1.2494631,3881.9,3870.6,2.46]
[1760135235092,2.58028262,3875.6,3870.6,2.46]
[1760135235323,2.58083266,3874.8,3870.6,2.46]
[1760135235521,1.26027816,3881.3,3870.6,2.46]
[1760135235835,2.58051197,3875.2,3870.6,2.46]
[1760135236132,0.2365,3878.7,3870.6,3.69]
[1760135236336,0.4479,3880.0,3870.6,3.69]
[1760135236629,0.2365,3880.7,3870.6,3.69]
[1760135236630,2.57745244,3879.8,3870.6,3.69]
[1760135236815,2.58057338,3875.2,3870.6,3.69]
[1760135237030,1.28845304,3881.6,3870.6,3.69]
[1760135237234,3.88034217,3874.5,3870.6,3.69]
[1760135237523,1.28876493,3882.4,3870.6,4.92]
[1760135237722,1.29509561,3874.0,3870.6,4.92]
[1760135237901,2.57980627,3876.3,3870.6,4.92]
[1760135238102,0.4479,3878.6,3870.6,4.92]
[1760135238413,1.27865658,3873.5,3870.6,4.92]
[1760135238612,1.24483548,3873.1,3870.6,4.92]
[1760135238802,1.25907581,3877.4,3870.6,6.15]
[1760135239404,1.2585696,3878.8,3870.6,6.15]
[1760135239695,2.57928346,3877.1,3870.6,6.15]
[1760135239900,0.002,3880.9,3870.6,6.15]
[1760135239901,1.20831064,3880.9,3870.6,6.15]
[1760135240124,0.73966388,3880.4,3870.6,6.15]
[1760135240326,2.58315725,3871.3,3870.6,7.38]
[1760135240504,1.22270663,3878.3,3870.6,7.38]
[1760135240823,2.58312515,3871.3,3870.6,7.38]
[1760135241029,1.27841056,3879.3,3870.6,7.38]
[1760135241216,1.28533772,3879.1,3870.6,7.38]
[1760135241413,2.57811694,3878.8,3870.6,7.38]
[1760135241595,7.73814129,3876.9,3870.6,7.38]
[1760135241796,2.5834867,3870.8,3870.6,8.61]
[1760135242296,1.26180843,3874.9,3870.6,8.61]
[1760135242497,2.58004592,3875.9,3866.5,1.23]
[1760135242695,2.58478081,3868.8,3866.5,1.23]
[1760135242925,2.58476803,3868.9,3866.5,1.23]
[1760135243116,1.24709788,3874.1,3866.5,1.23]
[1760135243312,1.23043284,3871.4,3866.5,1.23]
[1760135243512,1.24483319,3875.2,3866.5,1.226]
[1760135243697,2.5849585,3868.6,3866.5,1.226]
[1760135243895,0.4479,3875.5,3866.5,1.226]
[1760135243896,2.58517992,3868.3,3866.5,1.226]
[1760135244128,2.5849008,3868.7,3866.5,1.226]
[1760135244298,22.5,3884.8,3866.5,1.226]
[1760135244299,2.58251123,3872.2,3866.5,1.226]
[1760135244499,2.58199958,3873.0,3866.5,2.456]
[1760135244721,0.00701012,3876.5,3866.5,2.456]
[1760135244965,1.27759075,3876.3,3866.5,2.456]
[1760135245227,1.22311918,3871.8,3866.5,2.456]
[1760135245443,1.25890727,3875.5,3866.5,2.456]
[1760135245598,1.25338068,3876.9,3866.5,2.456]
[1760135245794,2.5842102,3869.7,3866.5,3.686]
[1760135245998,2.58469942,3869.0,3866.5,3.686]
[1760135246232,2.58509674,3868.4,3866.5,3.686]
[1760135246437,2.58031221,3875.5,3866.5,3.686]
[1760135246438,2.57951549,3876.7,3866.5,3.686]
[1760135246739,1.27759075,3876.3,3866.5,3.686]
[1760135247037,1.25541936,3875.9,3866.5,3.686]
[1760135247198,1.25338068,3876.9,3866.5,4.916]
[1760135247538,0.00707243,3876.7,3866.5,4.916]
[1760135247697,1.26017243,3876.7,3866.5,4.916]
[1760135247903,1.23643685,3876.6,3866.5,4.916]
[1760135248137,2.58459154,3869.1,3866.5,4.916]
[1760135248340,2.57991279,3876.1,3866.5,4.916]
[1760135248341,2.58406056,3869.9,3866.5,4.916]
[1760135248501,2.58302615,3871.5,3866.5,6.146]
[1760135248748,2.5826955,3872.0,3866.5,6.146]
[1760135249060,2.58028134,3875.6,3866.5,6.146]
[1760135249061,1.22270663,3878.3,3866.6,1.92]
[1760135249247,2.57863628,3878.1,3866.5,6.146]
[1760135249449,1.27841056,3879.3,3866.6,1.92]
[1760135249662,1.25338068,3876.9,3866.6,1.92]
[1760135249818,1.25338068,3876.9,3866.6,3.15]
[1760135250330,2.57754609,3879.7,3866.6,1.23]
[1760135250531,2.58301995,3871.5,3866.6,1.23]
[1760135250859,3.87725029,3878.5,3866.6,1.23]
[1760135250860,2.57938309,3876.9,3866.6,3.15]
[1760135251034,1.22109457,3873.6,3866.6,3.15]
[1760135251240,0.4479,3877.9,3866.6,4.38]
[1760135251438,0.26391977,3875.2,3866.6,4.38]
[1760135251665,1.26017243,3876.7,3866.6,4.38]